[Event "Petrov Memorial Rapid"]
[Site "Jurmala"]
[Date "2015.03.08"]
[Round "10"]
[White "Fridman, Daniel"]
[Black "Ivanchuk, Vasil"]
[Result "1/2-1/2"]
[ECO "D30"]
[WhiteElo "2647"]
[BlackElo "2731"]
[Annotator "Robot 8"]
[PlyCount "136"]
[EventDate "2015.??.??"]
[EventCountry "LAT"]
[TimeControl "900+6"]

1. d4 d5 2. Nf3 Nf6 3. c4 c6 4. Qc2 e6 5. g3 dxc4 6. Qxc4 b5 7. Qb3 Bb7 8. Bg2
a6 9. a4 c5 10. dxc5 Nbd7 11. Be3 Qa5+ 12. Nbd2 Bxc5 13. O-O Bd5 14. Qd3 Bxe3
15. Qxe3 bxa4 16. Qd4 O-O 17. Rxa4 Qb5 18. Rfa1 Rfb8 19. e4 Bc6 20. R4a2 h6 21.
Bf1 Qb4 22. Rxa6 Rxa6 23. Rxa6 Qxd4 24. Nxd4 Bxe4 25. Nxe4 Nxe4 26. Ra2 Ndc5
27. Bc4 Rb4 28. b3 Nxb3 29. Bxb3 Rxd4 30. Ra8+ Kh7 31. Bc2 g6 32. Bxe4 Rxe4 33.
h4 Kg7 34. Ra7 Kf6 35. Kg2 Rb4 36. Kf3 Rb5 37. Kg2 e5 38. Kf3 Ke6 39. Ra6+ Ke7
40. h5 e4+ 41. Kxe4 Rxh5 42. Kf3 Rb5 43. Kg2 h5 44. Rc6 Kf8 45. Ra6 Kg7 46. Rc6
g5 47. Ra6 f6 48. Rc6 Kg6 49. Rc4 Rb8 50. Ra4 Rh8 51. Rb4 h4 52. gxh4 Rxh4 53.
Rb5 Rc4 54. Kg3 Rc3+ 55. Kg2 g4 56. Ra5 f5 57. Ra4 Kg5 58. Ra5 Rd3 59. Rb5 Kf4
60. Rb4+ Ke5 61. Rb5+ Ke4 62. Rb4+ Rd4 63. Rxd4+ Kxd4 64. f3 g3 65. Kxg3 Ke3
66. f4 Ke4 67. Kg2 Kxf4 68. Kf2 Ke5 1/2-1/2

[Event "Petrov Memorial Rapid"]
[Site "Jurmala"]
[Date "2015.03.08"]
[Round "10"]
[White "Tomashevsky, Evgeny"]
[Black "Mamedyarov, Shakhriyar"]
[Result "1/2-1/2"]
[ECO "A50"]
[WhiteElo "2745"]
[BlackElo "2756"]
[Annotator "Robot 8"]
[PlyCount "105"]
[EventDate "2015.??.??"]
[EventCountry "LAT"]
[TimeControl "900+6"]

1. c4 Nf6 2. Nf3 b6 3. g3 Bb7 4. d4 g6 5. Bg2 Bg7 6. O-O O-O 7. Re1 e6 8. Bf4
d6 9. Qc2 Nbd7 10. Nc3 Qe7 11. Rad1 h6 12. e4 e5 13. dxe5 dxe5 14. Nd5 Nxd5 15.
exd5 Qd6 16. Bd2 a5 17. Bc3 Rae8 18. b3 Re7 19. Qb2 Rfe8 20. Re3 c6 21. Nd2 Nc5
22. Qc2 f5 23. dxc6 Bxc6 24. Ne4 Bxe4 25. Bxe4 Qc7 26. Bd5+ Kh7 27. f3 f4 28.
Re2 e4 29. Bxg7 Rxg7 30. Kg2 exf3+ 31. Bxf3 Rxe2+ 32. Qxe2 Re7 33. Qd2 fxg3 34.
hxg3 h5 35. Qd6 Qxd6 36. Rxd6 Re6 37. Rxe6 Nxe6 38. a3 Kg7 39. b4 axb4 40. axb4
Kf6 41. Kf2 Ke5 42. Ke3 Nd4 43. Be4 g5 44. Bg6 h4 45. gxh4 gxh4 46. Kf2 Nc6 47.
c5 b5 48. Be8 Nxb4 49. Bxb5 h3 50. Kg3 Kd5 51. c6 Nxc6 52. Bxc6+ Kxc6 53. Kxh3
1/2-1/2

[Event "Petrov Memorial Rapid"]
[Site "Jurmala"]
[Date "2015.03.08"]
[Round "10"]
[White "Ehlvest, Jaan"]
[Black "Rapport, Richard"]
[Result "0-1"]
[ECO "A10"]
[WhiteElo "2547"]
[BlackElo "2709"]
[Annotator "Robot 8"]
[PlyCount "40"]
[EventDate "2015.??.??"]
[EventCountry "LAT"]
[TimeControl "900+6"]

1. c4 f5 2. g3 Nf6 3. Bg2 e6 4. Nf3 Be7 5. O-O d5 6. b3 Nc6 7. d4 Ne4 8. Bb2 h5
9. Nbd2 h4 10. Rc1 hxg3 11. hxg3 Bf6 12. e3 Qe7 13. cxd5 exd5 14. Rxc6 bxc6 15.
Qc1 Qe6 16. Qc2 Ba6 17. Re1 g5 18. Ne5 Bxe5 19. dxe5 g4 20. Nf1 Rh6 0-1

[Event "Petrov Memorial Rapid"]
[Site "Jurmala"]
[Date "2015.03.08"]
[Round "10"]
[White "Karjakin, Sergey"]
[Black "Khalifman, Alexander"]
[Result "1-0"]
[ECO "B31"]
[WhiteElo "2757"]
[BlackElo "2613"]
[Annotator "Robot 8"]
[PlyCount "75"]
[EventDate "2015.??.??"]
[EventCountry "LAT"]
[TimeControl "900+6"]

1. e4 c5 2. Nf3 Nc6 3. Nc3 g6 4. Bb5 Bg7 5. O-O Nf6 6. Bxc6 dxc6 7. h3 Nd7 8.
d3 Nf8 9. Ne2 e5 10. a3 a5 11. Bd2 Ne6 12. b4 axb4 13. axb4 Rxa1 14. Qxa1 Nd4
15. Nexd4 cxd4 16. c3 O-O 17. cxd4 exd4 18. Bf4 Re8 19. Rc1 Qf6 20. Bg3 g5 21.
Rc5 g4 22. hxg4 Bxg4 23. Be5 Qg6 24. Nh4 Qh6 25. Nf5 Bxf5 26. Bxg7 Qxg7 27.
Rxf5 h6 28. Qa7 b5 29. Rf3 Re6 30. Rg3 Rg6 31. Rxg6 Qxg6 32. Qxd4 h5 33. Qe5
Kh7 34. Kh2 Qg4 35. Qf6 Kg8 36. f3 Qd7 37. d4 h4 38. f4 1-0

[Event "Petrov Memorial Rapid"]
[Site "Jurmala"]
[Date "2015.03.08"]
[Round "10"]
[White "Fedoseev, Vladimir"]
[Black "Shomoev, Anton"]
[Result "1-0"]
[ECO "B81"]
[WhiteElo "2674"]
[BlackElo "2578"]
[Annotator "Robot 8"]
[PlyCount "69"]
[EventDate "2015.??.??"]
[EventCountry "LAT"]
[TimeControl "900+6"]

1. e4 c5 2. Nf3 d6 3. d4 cxd4 4. Nxd4 Nf6 5. Nc3 a6 6. h3 e6 7. g4 h6 8. Bg2 g5
9. Be3 Nbd7 10. Qe2 Ne5 11. O-O h5 12. f3 Nfd7 13. b3 Ng6 14. Qd2 Be7 15. Nce2
Nde5 16. Ng3 hxg4 17. fxg4 Nf4 18. Bxf4 gxf4 19. Qxf4 Bd7 20. Nf3 Qb6+ 21. Kh1
Ng6 22. Qd2 Bc6 23. Ng5 Ne5 24. Nh5 Qc5 25. Ng7+ Kd7 26. Nxf7 Nxf7 27. Rxf7
Raf8 28. Raf1 Rxf7 29. Rxf7 Qe5 30. Qf4 Qc3 31. Nxe6 Rxh3+ 32. Bxh3 Qxh3+ 33.
Kg1 Ke8 34. Ng7+ Kd8 35. Nf5 1-0

[Event "Petrov Memorial Rapid"]
[Site "Jurmala"]
[Date "2015.03.08"]
[Round "11"]
[White "Fedorov, Alexei"]
[Black "Tregubov, Pavel V"]
[Result "1/2-1/2"]
[ECO "B40"]
[WhiteElo "2547"]
[BlackElo "2528"]
[Annotator "Robot 11"]
[PlyCount "146"]
[EventDate "2015.??.??"]
[EventCountry "LAT"]
[TimeControl "840+5"]

1. e4 {[%emt 0:00:00]} c5 {[%emt 0:00:00]} 2. Nf3 {[%emt 0:00:00]} e6 {[%emt 0:
00:00]} 3. d3 {[%emt 0:00:00]} Nc6 {[%emt 0:00:00]} 4. c3 {[%emt 0:00:00]} d5 {
[%emt 0:00:00]} 5. Qe2 {[%emt 0:00:00]} Nge7 {[%emt 0:00:00]} 6. g3 {[%emt 0:
00:00]} d4 {[%emt 0:00:48]} 7. e5 {[%emt 0:00:07]} dxc3 {[%emt 0:00:07]} 8.
Nxc3 {[%emt 0:00:13]} Nf5 {[%emt 0:00:06]} 9. Bg2 {[%emt 0:00:06]} Be7 {[%emt
0:00:52]} 10. O-O {[%emt 0:00:09]} O-O {[%emt 0:00:00]} 11. Bf4 {[%emt 0:01:00]
} b6 {[%emt 0:00:37]} 12. Nd2 {[%emt 0:01:20]} Bb7 {[%emt 0:00:33]} 13. Be4 Qd7
14. Qg4 {[%emt 0:01:30]} Nb4 {[%emt 0:02:53]} 15. Rad1 {[%emt 0:00:26]} Rfd8 {
[%emt 0:00:08]} 16. Nf3 {[%emt 0:00:54]} Nd5 {[%emt 0:00:51]} 17. Rd2 {[%emt 0:
03:58]} Nxf4 {[%emt 0:00:31]} 18. Qxf4 {[%emt 0:00:03]} Nd4 {[%emt 0:02:02]}
19. Nxd4 {[%emt 0:00:41]} cxd4 {[%emt 0:00:02]} 20. Bxb7 {[%emt 0:00:42]} dxc3
{[%emt 0:00:52]} 21. Bxa8 {[%emt 0:00:01]} cxd2 {[%emt 0:00:00]} 22. Be4 {
[%emt 0:00:13]} Qd4 {[%emt 0:00:04]} 23. Rd1 {[%emt 0:00:31]} Qxb2 {[%emt 0:01:
32]} 24. Rxd2 {[%emt 0:00:05]} Qc1+ {[%emt 0:00:13]} 25. Kg2 {[%emt 0:00:05]}
h6 {[%emt 0:00:28]} 26. Qe3 {[%emt 0:00:39]} Bb4 {[%emt 0:00:59]} 27. Re2 {
[%emt 0:00:02]} Qc3 {[%emt 0:00:07]} 28. d4 {[%emt 0:00:57]} Qxd4 {[%emt 0:00:
16]} 29. Qxd4 {[%emt 0:00:01]} Rxd4 {[%emt 0:00:00]} 30. f4 {[%emt 0:00:09]} g6
{[%emt 0:00:02]} 31. Kf3 {[%emt 0:00:04]} h5 {[%emt 0:00:09]} 32. h3 Bc5 {
[%emt 0:00:07]} 33. Bc2 {[%emt 0:00:31]} Rc4 {[%emt 0:00:10]} 34. Rd2 {[%emt 0:
00:18]} Kf8 35. g4 {[%emt 0:00:17]} Bb4 {[%emt 0:00:59]} 36. Rh2 {[%emt 0:00:
33]} Rc3+ {[%emt 0:00:04]} 37. Ke4 {[%emt 0:00:01]} Rg3 {[%emt 0:00:51]} 38.
gxh5 {[%emt 0:00:01]} Bc5 {[%emt 0:00:04]} 39. Re2 {[%emt 0:00:16]} gxh5 {
[%emt 0:00:00]} 40. f5 {[%emt 0:00:00]} exf5+ {[%emt 0:00:32]} 41. Kxf5 {[%emt
0:00:03]} Rxh3 {[%emt 0:00:03]} 42. e6 {[%emt 0:00:08]} fxe6+ {[%emt 0:00:03]}
43. Rxe6 {[%emt 0:00:03]} Rh2 {[%emt 0:00:22]} 44. Bb3 {[%emt 0:00:12]} h4 {
[%emt 0:00:01]} 45. Rh6 {[%emt 0:00:02]} a5 {[%emt 0:00:07]} 46. Rh7 {[%emt 0:
00:12]} h3 {[%emt 0:00:03]} 47. Kg4 {[%emt 0:00:05]} Rf2 {[%emt 0:00:06]} 48.
Rxh3 {[%emt 0:00:05]} Ke7 {[%emt 0:00:01]} 49. Rd3 {[%emt 0:00:01]} Bb4 {[%emt
0:00:10]} 50. a4 {[%emt 0:00:06]} Bc5 {[%emt 0:00:04]} 51. Bc4 {[%emt 0:00:04]}
Rb2 {[%emt 0:00:04]} 52. Bb5 {[%emt 0:00:13]} Rf2 {[%emt 0:00:02]} 53. Rf3 {
[%emt 0:00:13]} Rb2 {[%emt 0:00:09]} 54. Kf5 {[%emt 0:00:00]} Rb4 {[%emt 0:00:
06]} 55. Rd3 {[%emt 0:00:06]} Bd4 {[%emt 0:00:02]} 56. Ke4 {[%emt 0:00:04]}
Bc5+ {[%emt 0:00:02]} 57. Kd5 {[%emt 0:00:01]} Rh4 {[%emt 0:00:02]} 58. Kc6 {
[%emt 0:00:01]} Ke6 {[%emt 0:00:02]} 59. Rd1 {[%emt 0:00:05]} Ke5 {[%emt 0:00:
02]} 60. Rd8 {[%emt 0:00:07]} Ke4 {[%emt 0:00:03]} 61. Kb7 {[%emt 0:00:04]} Ke3
{[%emt 0:00:03]} 62. Ka6 {[%emt 0:00:00]} Bd4 {[%emt 0:00:07]} 63. Rd6 {[%emt
0:00:12]} Kd2 {[%emt 0:00:04]} 64. Rxd4+ {[%emt 0:00:01]} Rxd4 {[%emt 0:00:00]}
65. Kxb6 {[%emt 0:00:00]} Kc3 {[%emt 0:00:01]} 66. Kxa5 {[%emt 0:00:00]} Rd6 {
[%emt 0:00:00]} 67. Ba6 {[%emt 0:00:07]} Kd4 {[%emt 0:00:02]} 68. Kb5 {[%emt 0:
00:02]} Rh6 {[%emt 0:00:16]} 69. a5 {[%emt 0:00:14]} Rh5+ {[%emt 0:00:03]} 70.
Kb6 {[%emt 0:00:00]} Rh6+ {[%emt 0:00:04]} 71. Kb5 {[%emt 0:00:00]} Rh1 {[%emt
0:00:07]} 72. Bb7 {[%emt 0:00:06]} Rb1+ {[%emt 0:00:14]} 73. Kc6 {[%emt 0:00:
01]} Ra1 {[%emt 0:00:03]} 1/2-1/2

[Event "Petrov Memorial Rapid"]
[Site "Jurmala"]
[Date "2015.03.08"]
[Round "11"]
[White "Gelfand, Boris"]
[Black "Karjakin, Sergey"]
[Result "1/2-1/2"]
[ECO "E01"]
[WhiteElo "2724"]
[BlackElo "2798"]
[Annotator "Robot 11"]
[PlyCount "39"]
[EventDate "2015.??.??"]
[EventCountry "LAT"]
[TimeControl "840+5"]

1. d4 {[%emt 0:00:00]} Nf6 {[%emt 0:00:00]} 2. c4 {[%emt 0:00:00]} e6 {[%emt 0:
00:00]} 3. g3 {[%emt 0:00:00]} d5 {[%emt 0:00:00]} 4. Bg2 {[%emt 0:00:00]} Bb4+
{[%emt 0:00:00]} 5. Bd2 {[%emt 0:00:00]} Be7 {[%emt 0:00:00]} 6. Nf3 {[%emt 0:
00:00]} O-O {[%emt 0:00:00]} 7. O-O {[%emt 0:00:00]} c6 {[%emt 0:00:00]} 8. Qc2
{[%emt 0:00:00]} Nbd7 {[%emt 0:00:00]} 9. Rd1 {[%emt 0:00:00]} b6 {[%emt 0:00:
00]} 10. Bf4 {[%emt 0:00:00]} Ba6 {[%emt 0:00:00]} 11. cxd5 {[%emt 0:00:00]}
cxd5 {[%emt 0:00:00]} 12. Ne5 {[%emt 0:00:00]} Nxe5 {[%emt 0:00:00]} 13. dxe5 {
[%emt 0:00:00]} Ng4 {[%emt 0:00:00]} 14. Bf3 {[%emt 0:00:47]} f5 {[%emt 0:00:
40]} 15. exf6 {[%emt 0:00:01]} Nxf6 {[%emt 0:00:01]} 16. Qa4 {[%emt 0:00:27]}
Bb7 {[%emt 0:00:23]} 17. Nc3 {[%emt 0:00:00]} Bc5 {[%emt 0:01:33]} 18. Rac1 {
[%emt 0:01:35]} Qe7 {[%emt 0:00:26]} 19. Be5 {[%emt 0:00:14]} Rac8 {[%emt 0:01:
02]} 20. Qh4 1/2-1/2

[Event "Petrov Memorial Rapid"]
[Site "Jurmala"]
[Date "2015.03.08"]
[Round "11"]
[White "Ivanchuk, Vasil"]
[Black "Fedoseev, Vladimir"]
[Result "1-0"]
[ECO "E34"]
[WhiteElo "2731"]
[BlackElo "2714"]
[Annotator "Robot 11"]
[PlyCount "115"]
[EventDate "2015.??.??"]
[EventCountry "LAT"]
[TimeControl "840+5"]

1. d4 {[%emt 0:00:00]} Nf6 {[%emt 0:00:00]} 2. c4 {[%emt 0:00:00]} e6 {[%emt 0:
00:00]} 3. Nc3 {[%emt 0:00:00]} Bb4 {[%emt 0:00:00]} 4. Qc2 {[%emt 0:00:00]} d5
{[%emt 0:00:00]} 5. cxd5 {[%emt 0:00:00]} Qxd5 {[%emt 0:00:00]} 6. Nf3 {[%emt
0:00:00]} Qf5 {[%emt 0:00:00]} 7. Qxf5 {[%emt 0:00:00]} exf5 {[%emt 0:00:00]}
8. a3 {[%emt 0:00:00]} Bd6 {[%emt 0:00:00]} 9. Bg5 {[%emt 0:00:00]} Nbd7 {
[%emt 0:00:00]} 10. e3 {[%emt 0:00:00]} c6 {[%emt 0:00:00]} 11. Bd3 {[%emt 0:
00:04]} g6 {[%emt 0:00:00]} 12. Bh4 {[%emt 0:00:30]} O-O {[%emt 0:00:10]} 13.
Bg3 {[%emt 0:00:01]} Bxg3 {[%emt 0:00:35]} 14. hxg3 {[%emt 0:00:00]} Nb6 {
[%emt 0:00:14]} 15. Ke2 {[%emt 0:00:24]} Kg7 {[%emt 0:00:12]} 16. Rhc1 {[%emt
0:00:18]} a5 {[%emt 0:00:49]} 17. b3 {[%emt 0:00:27]} Be6 {[%emt 0:01:13]} 18.
Rab1 {[%emt 0:00:00]} Rfe8 {[%emt 0:00:20]} 19. Nd2 {[%emt 0:00:50]} Nbd5 {
[%emt 0:01:09]} 20. Nxd5 {[%emt 0:00:40]} Bxd5 {[%emt 0:01:13]} 21. f3 {[%emt
0:00:02]} Be6 {[%emt 0:02:06]} 22. Kf2 {[%emt 0:00:40]} Nd5 {[%emt 0:00:10]}
23. Nc4 {[%emt 0:00:01]} Re7 {[%emt 0:00:10]} 24. Rb2 {[%emt 0:00:08]} f6 {
[%emt 0:00:34]} 25. Re1 {[%emt 0:00:45]} Bg8 {[%emt 0:01:36]} 26. Rc2 {[%emt 0:
00:01]} Nc7 {[%emt 0:00:06]} 27. Nb6 {[%emt 0:00:27]} Rd8 {[%emt 0:00:07]} 28.
Bc4 {[%emt 0:00:51]} Rde8 {[%emt 0:00:58]} 29. Rc3 {[%emt 0:04:05]} Bf7 {[%emt
0:00:34]} 30. a4 {[%emt 0:00:40]} Bxc4 {[%emt 0:00:34]} 31. bxc4 {[%emt 0:00:
02]} c5 {[%emt 0:00:00]} 32. Rcc1 {[%emt 0:01:21]} Na6 {[%emt 0:00:41]} 33. Nd5
{[%emt 0:00:10]} Re6 {[%emt 0:00:44]} 34. Rb1 {[%emt 0:01:05]} Nb4 {[%emt 0:00:
00]} 35. Nc7 {[%emt 0:00:04]} Nd3+ {[%emt 0:00:00]} 36. Kf1 {[%emt 0:00:00]}
Nxe1 {[%emt 0:00:00]} 37. Nxe8+ {[%emt 0:00:32]} Rxe8 {[%emt 0:00:00]} 38. Rxe1
{[%emt 0:00:00]} b6 {[%emt 0:00:35]} 39. Kf2 {[%emt 0:00:11]} Rd8 {[%emt 0:00:
42]} 40. Rd1 {[%emt 0:00:29]} Kf7 {[%emt 0:00:13]} 41. Ke2 {[%emt 0:00:12]} Ke7
{[%emt 0:00:01]} 42. g4 {[%emt 0:00:35]} fxg4 {[%emt 0:00:47]} 43. fxg4 {[%emt
0:00:00]} Ke6 {[%emt 0:00:25]} 44. Kd3 {[%emt 0:00:08]} Rd7 {[%emt 0:00:23]}
45. Rh1 {[%emt 0:00:36]} f5 {[%emt 0:00:10]} 46. d5+ {[%emt 0:00:38]} Ke5 {
[%emt 0:00:03]} 47. gxf5 {[%emt 0:00:00]} Kxf5 {[%emt 0:00:00]} 48. Rf1+ {
[%emt 0:00:01]} Ke5 {[%emt 0:00:00]} 49. Rf8 {[%emt 0:00:11]} Rb7 {[%emt 0:00:
20]} 50. Re8+ {[%emt 0:00:10]} Kf5 {[%emt 0:00:04]} 51. e4+ {[%emt 0:00:03]}
Kf4 {[%emt 0:00:00]} 52. e5 {[%emt 0:00:03]} h5 {[%emt 0:00:04]} 53. d6 {[%emt
0:00:15]} Rd7 {[%emt 0:00:10]} 54. Re7 {[%emt 0:00:00]} Rd8 {[%emt 0:00:00]}
55. d7 {[%emt 0:00:00]} h4 {[%emt 0:00:23]} 56. e6 {[%emt 0:00:05]} h3 {[%emt
0:00:05]} 57. gxh3 {[%emt 0:00:05]} Rh8 {[%emt 0:00:05]} 58. Rf7+ {[%emt 0:00:
05]} 1-0

[Event "Petrov Memorial Rapid"]
[Site "Jurmala"]
[Date "2015.03.08"]
[Round "11"]
[White "Krasenkow, Michal"]
[Black "Shirov, Alexei"]
[Result "1/2-1/2"]
[ECO "D11"]
[WhiteElo "2550"]
[BlackElo "2622"]
[Annotator "Robot 11"]
[PlyCount "45"]
[EventDate "2015.??.??"]
[EventCountry "LAT"]
[TimeControl "840+5"]

1. d4 {[%emt 0:00:00]} d5 {[%emt 0:00:00]} 2. c4 {[%emt 0:00:00]} c6 {[%emt 0:
00:00]} 3. Nf3 {[%emt 0:00:00]} Nf6 {[%emt 0:00:00]} 4. Qb3 {[%emt 0:00:00]}
dxc4 {[%emt 0:00:00]} 5. Qxc4 {[%emt 0:00:00]} Bg4 {[%emt 0:00:00]} 6. Nbd2 {
[%emt 0:00:00]} Nbd7 {[%emt 0:00:00]} 7. g3 {[%emt 0:00:00]} e6 {[%emt 0:00:00]
} 8. Bg2 {[%emt 0:00:00]} Be7 {[%emt 0:00:00]} 9. O-O {[%emt 0:00:00]} O-O {
[%emt 0:00:00]} 10. Qb3 {[%emt 0:00:46]} Qb6 {[%emt 0:00:00]} 11. Nc4 {[%emt 0:
00:05]} Qa6 {[%emt 0:00:19]} 12. Bf4 {[%emt 0:00:48]} Nd5 {[%emt 0:00:46]} 13.
Bd2 {[%emt 0:01:26]} N5b6 {[%emt 0:00:42]} 14. Rfc1 {[%emt 0:00:48]} Rfd8 {
[%emt 0:02:28]} 15. e3 {[%emt 0:01:38]} Nxc4 {[%emt 0:00:27]} 16. Rxc4 {[%emt
0:00:42]} Bxf3 {[%emt 0:00:30]} 17. Bxf3 {[%emt 0:00:00]} Ne5 {[%emt 0:00:01]}
18. dxe5 {[%emt 0:00:17]} Rxd2 {[%emt 0:00:02]} 19. Ra4 {[%emt 0:00:31]} Qb5 {
[%emt 0:00:02]} 20. Qxb5 {[%emt 0:00:06]} cxb5 {[%emt 0:00:02]} 21. Rd4 {[%emt
0:00:00]} Rd8 {[%emt 0:01:41]} 22. Rxd8+ {[%emt 0:04:37]} Bxd8 {[%emt 0:00:09]}
23. Rd1 {[%emt 0:01:54]} 1/2-1/2

[Event "Petrov Memorial Rapid"]
[Site "Jurmala"]
[Date "2015.03.08"]
[Round "11"]
[White "Mamedyarov, Shakhriyar"]
[Black "Fridman, Daniel"]
[Result "1/2-1/2"]
[ECO "C26"]
[WhiteElo "2766"]
[BlackElo "2643"]
[Annotator "Robot 11"]
[PlyCount "119"]
[EventDate "2015.??.??"]
[EventCountry "LAT"]
[TimeControl "840+5"]

1. e4 {[%emt 0:00:00]} e5 {[%emt 0:00:00]} 2. Nc3 {[%emt 0:00:00]} Nf6 {[%emt
0:00:00]} 3. g3 {[%emt 0:00:00]} d5 {[%emt 0:00:00]} 4. exd5 {[%emt 0:00:00]}
Nxd5 {[%emt 0:00:00]} 5. Bg2 {[%emt 0:00:00]} Nxc3 {[%emt 0:00:00]} 6. bxc3 {
[%emt 0:00:00]} Nc6 {[%emt 0:00:00]} 7. Nf3 {[%emt 0:00:00]} Bc5 {[%emt 0:00:
00]} 8. O-O {[%emt 0:00:00]} O-O {[%emt 0:00:00]} 9. Re1 {[%emt 0:00:00]} Qf6 {
[%emt 0:00:03]} 10. d3 {[%emt 0:00:00]} Bg4 {[%emt 0:00:04]} 11. h3 {[%emt 0:
00:00]} Bh5 {[%emt 0:00:01]} 12. Be3 {[%emt 0:00:00]} Bb6 {[%emt 0:00:32]} 13.
g4 {[%emt 0:00:00]} Bg6 {[%emt 0:00:00]} 14. Nd2 {[%emt 0:00:00]} Qh4 {[%emt 0:
00:23]} 15. Qf3 {[%emt 0:00:00]} f5 {[%emt 0:00:34]} 16. gxf5 {[%emt 0:00:00]}
Bxf5 {[%emt 0:00:32]} 17. Qg3 {[%emt 0:00:03]} Qh5 {[%emt 0:00:20]} 18. Ne4 {
[%emt 0:00:49]} Rae8 {[%emt 0:00:50]} 19. Kh2 {[%emt 0:01:27]} h6 {[%emt 0:00:
42]} 20. Rg1 {[%emt 0:00:09]} Re6 {[%emt 0:00:04]} 21. Bc5 {[%emt 0:02:28]} Rg6
{[%emt 0:04:02]} 22. Qe3 {[%emt 0:00:38]} Qh4 {[%emt 0:00:51]} 23. Ng3 {[%emt
0:00:14]} Be6 {[%emt 0:00:15]} 24. Bxb6 {[%emt 0:02:23]} axb6 {[%emt 0:00:01]}
25. Nh1 {[%emt 0:00:07]} Qf4+ {[%emt 0:01:45]} 26. Qxf4 {[%emt 0:00:41]} exf4 {
[%emt 0:00:01]} 27. Rae1 {[%emt 0:00:21]} Bf5 {[%emt 0:00:38]} 28. Bd5+ {[%emt
0:00:42]} Kh7 {[%emt 0:00:00]} 29. Rxg6 {[%emt 0:00:03]} Kxg6 {[%emt 0:00:01]}
30. f3 {[%emt 0:00:02]} Rd8 {[%emt 0:00:13]} 31. Bb3 {[%emt 0:00:11]} Rd7 {
[%emt 0:00:38]} 32. Nf2 {[%emt 0:01:06]} Re7 {[%emt 0:00:00]} 33. Ne4 {[%emt 0:
00:01]} Ne5 {[%emt 0:00:53]} 34. Kg2 {[%emt 0:00:01]} b5 {[%emt 0:00:15]} 35.
a4 {[%emt 0:01:00]} bxa4 36. Bxa4 {[%emt 0:00:00]} Kh5 {[%emt 0:00:25]} 37. d4
{[%emt 0:01:31]} Ng6 {[%emt 0:00:00]} 38. c4 {[%emt 0:00:00]} Kh4 {[%emt 0:00:
08]} 39. c5 {[%emt 0:00:08]} Be6 {[%emt 0:00:39]} 40. Kf2 {[%emt 0:00:11]} Bd5
{[%emt 0:00:16]} 41. Rg1 {[%emt 0:00:15]} Kh5 {[%emt 0:00:00]} 42. c3 {[%emt 0:
00:30]} Nh4 {[%emt 0:00:22]} 43. Bd1 {[%emt 0:00:21]} Nf5 {[%emt 0:00:07]} 44.
Be2 {[%emt 0:00:05]} Ne3 {[%emt 0:00:16]} 45. Bd3 {[%emt 0:00:04]} Bc4 {[%emt
0:00:13]} 46. Bxc4 {[%emt 0:00:40]} Nxc4 {[%emt 0:00:00]} 47. Rb1 {[%emt 0:00:
00]} c6 {[%emt 0:00:05]} 48. Rg1 {[%emt 0:00:41]} Ne3 {[%emt 0:00:28]} 49. Nd6
{[%emt 0:00:00]} g5 {[%emt 0:00:15]} 50. Rb1 {[%emt 0:00:05]} Nd5 {[%emt 0:00:
06]} 51. Rxb7 {[%emt 0:00:09]} Re3 {[%emt 0:00:12]} 52. c4 {[%emt 0:00:06]} Nc3
{[%emt 0:00:00]} 53. Nf5 {[%emt 0:00:15]} Re2+ {[%emt 0:00:03]} 54. Kf1 {[%emt
0:00:00]} Kg6 {[%emt 0:00:18]} 55. Ne7+ {[%emt 0:00:07]} Kh5 {[%emt 0:00:00]}
56. d5 {[%emt 0:00:09]} Rd2 {[%emt 0:00:36]} 57. dxc6 {[%emt 0:00:55]} Rd1+ {
[%emt 0:00:06]} 58. Kf2 {[%emt 0:00:00]} Rd2+ {[%emt 0:00:00]} 59. Ke1 {[%emt
0:00:00]} Rd1+ {[%emt 0:00:00]} 60. Kf2 {[%emt 0:00:00]} 1/2-1/2

[Event "Petrov Memorial Rapid"]
[Site "Jurmala"]
[Date "2015.03.08"]
[Round "11"]
[White "Popov, Valerij"]
[Black "Tomashevsky, Evgeny"]
[Result "1/2-1/2"]
[ECO "A17"]
[WhiteElo "2583"]
[BlackElo "2748"]
[Annotator "Robot 11"]
[PlyCount "37"]
[EventDate "2015.??.??"]
[EventCountry "LAT"]
[TimeControl "840+5"]

1. Nf3 {[%emt 0:00:00]} Nf6 {[%emt 0:00:00]} 2. c4 {[%emt 0:00:00]} e6 {[%emt
0:00:00]} 3. Nc3 {[%emt 0:00:00]} Bb4 {[%emt 0:00:00]} 4. g4 {[%emt 0:00:00]}
h6 {[%emt 0:00:42]} 5. Rg1 {[%emt 0:00:00]} b6 {[%emt 0:00:00]} 6. Qc2 {[%emt
0:00:07]} Bb7 {[%emt 0:00:05]} 7. a3 {[%emt 0:00:00]} Bxc3 {[%emt 0:01:57]} 8.
Qxc3 {[%emt 0:00:05]} d6 {[%emt 0:00:04]} 9. h4 {[%emt 0:01:50]} e5 {[%emt 0:
01:29]} 10. g5 {[%emt 0:00:00]} hxg5 {[%emt 0:00:03]} 11. hxg5 {[%emt 0:00:01]}
Nfd7 {[%emt 0:00:20]} 12. d4 {[%emt 0:00:55]} Nc6 {[%emt 0:00:49]} 13. d5 {
[%emt 0:01:19]} Ne7 {[%emt 0:00:01]} 14. b4 {[%emt 0:00:20]} Ng6 {[%emt 0:00:
58]} 15. e4 {[%emt 0:01:31]} c5 {[%emt 0:00:07]} 16. b5 {[%emt 0:01:08]} a5 {
[%emt 0:00:40]} 17. Be3 {[%emt 0:00:37]} Qe7 {[%emt 0:00:01]} 18. O-O-O {[%emt
0:00:23]} O-O-O {[%emt 0:01:18]} 19. Qd2 {[%emt 0:00:13]} 1/2-1/2

[Event "Petrov Memorial Rapid"]
[Site "Jurmala"]
[Date "2015.03.08"]
[Round "11"]
[White "Rapport, Richard"]
[Black "Naiditsch, Arkadij"]
[Result "1-0"]
[ECO "A01"]
[WhiteElo "2724"]
[BlackElo "2698"]
[Annotator "Robot 11"]
[PlyCount "79"]
[EventDate "2015.??.??"]
[EventCountry "LAT"]
[TimeControl "840+5"]

1. b3 {[%emt 0:00:00]} Nf6 {[%emt 0:00:00]} 2. Bb2 {[%emt 0:00:00]} g6 {[%emt
0:00:00]} 3. Bxf6 {[%emt 0:00:00]} exf6 {[%emt 0:00:00]} 4. c4 {[%emt 0:00:00]}
Bg7 {[%emt 0:00:00]} 5. Nc3 {[%emt 0:00:00]} f5 {[%emt 0:00:00]} 6. Rc1 {[%emt
0:00:00]} c5 {[%emt 0:00:00]} 7. g3 {[%emt 0:00:00]} O-O {[%emt 0:00:00]} 8.
Bg2 {[%emt 0:00:00]} Nc6 {[%emt 0:00:00]} 9. Nh3 {[%emt 0:00:00]} g5 {[%emt 0:
00:01]} 10. f4 {[%emt 0:00:00]} h6 {[%emt 0:00:16]} 11. O-O {[%emt 0:00:00]} d6
{[%emt 0:00:01]} 12. fxg5 {[%emt 0:00:14]} hxg5 {[%emt 0:00:01]} 13. e3 {[%emt
0:00:05]} g4 {[%emt 0:01:49]} 14. Nf4 {[%emt 0:00:01]} Qg5 {[%emt 0:00:42]} 15.
Ncd5 {[%emt 0:01:10]} Bd7 {[%emt 0:00:08]} 16. Rb1 {[%emt 0:00:09]} Rad8 {
[%emt 0:00:21]} 17. b4 {[%emt 0:00:25]} b6 {[%emt 0:00:01]} 18. a4 {[%emt 0:00:
41]} Be5 {[%emt 0:01:09]} 19. a5 {[%emt 0:00:17]} cxb4 {[%emt 0:00:08]} 20.
axb6 {[%emt 0:00:08]} a5 {[%emt 0:00:04]} 21. Rf2 {[%emt 0:01:47]} Rb8 {[%emt
0:00:23]} 22. h4 {[%emt 0:02:30]} Qh6 {[%emt 0:03:01]} 23. d4 {[%emt 0:00:36]}
Bg7 {[%emt 0:00:02]} 24. c5 {[%emt 0:00:51]} dxc5 {[%emt 0:00:19]} 25. dxc5 {
[%emt 0:00:01]} Rfd8 {[%emt 0:01:49]} 26. Qc2 {[%emt 0:00:03]} Kh8 {[%emt 0:01:
07]} 27. Rd1 {[%emt 0:00:14]} Ne5 {[%emt 0:02:54]} 28. Ne7 {[%emt 0:01:02]} a4
{[%emt 0:00:00]} 29. Rd6 {[%emt 0:00:09]} Qxd6 {[%emt 0:00:40]} 30. cxd6 {
[%emt 0:00:01]} b3 {[%emt 0:00:01]} 31. Qc7 {[%emt 0:00:44]} a3 {[%emt 0:00:08]
} 32. Bd5 {[%emt 0:00:01]} a2 {[%emt 0:00:51]} 33. Rxa2 {[%emt 0:00:00]} bxa2 {
[%emt 0:00:00]} 34. Bxa2 {[%emt 0:00:01]} Ra8 {[%emt 0:00:33]} 35. Bd5 {[%emt
0:00:57]} Ra1+ {[%emt 0:00:06]} 36. Kf2 {[%emt 0:00:04]} Rda8 {[%emt 0:00:12]}
37. b7 {[%emt 0:00:33]} R8a2+ {[%emt 0:00:05]} 38. Bxa2 {[%emt 0:00:00]} Rxa2+
{[%emt 0:00:00]} 39. Ne2 {[%emt 0:00:01]} Nd3+ {[%emt 0:00:06]} 40. Kg1 {[%emt
0:00:12]} 1-0